Cogmind - Beta 15 @@@ ROGUE MODE // 2025.08.05 @ 08:42:12 Player: beans Result: Destroyed by QH-AVI(h) via exploding Z-Power Performance ------------- Evolutions (1) 500 Regions Visited (6) 1200 Robots Destroyed (24) 120 Value Destroyed (482) 482 Prototype IDs (7) 140 Alien Tech Used (0) 0 Bonus (1763) 1763 TOTAL SCORE: 4205 Bonus ------- Follower Combat Kills 163 Met Imprinter 300 Was Imprinted 300 Destroyed Z-Imprinter 1000 Cogmind --------- Core Integrity 0/400 Matter 236/300 Energy 100/100 System Corruption 0% Temperature Cool (0) Movement Core (50) Location -7/Deep Caves Parts ------- > --- POWER (1) -------- (None) > --- PROPULSION (2) --- (None) > --- UTILITY (2) ------ 0b10 Decoder Chip [Looter] > --- WEAPON (4) ------- Enhanced Autogun > --- INVENTORY (5) ---- Particle Gun Peak State ------------ > --- POWER ------------ (None) > --- PROPULSION ------- (None) > --- UTILITY ---------- 0b10 Decoder Chip [Looter] Hacking Drone Bay > --- WEAPON ----------- High-powered Shotgun Enhanced Autogun Slug Cannon Bore Cannon > --- INVENTORY -------- Enhanced Autogun Enhanced Autogun KE Penetrator [Rating: 31] Favorites ----------- Power None Propulsion Light Treads Treads Light Treads Utility Improved Propulsion Shielding Device Hacking Drone Bay Processor Advanced Targeting Computer Protection Improved Propulsion Shielding Weapon Enhanced Autogun Energy Gun EM Pulse Gun Ballistic Gun Enhanced Autogun Ballistic Cannon Assault Cannon Launcher Missile Launcher Build | -11 -10 -10 -9 -9 -7 -7 ------- Run | Yrd Mat Min Mat Min Zio Dee Slots Evolved 2 | . . . 2 . . . Power . | . . . . . . . Propulsion . | . . . . . . . Utility . | . . . . . . . Weapon 2 | . . . 2 . . . Parts Attached 25 | 3 . 4 9 . 4 5 Power . | . . . . . . . Engine . | . . . . . . . Core . | . . . . . . . Reactor . | . . . . . . . Propulsion 2 | 2 . . . . . . Treads 2 | 2 . . . . . . Leg . | . . . . . . . Wheel . | . . . . . . . Hover . | . . . . . . . Flight . | . . . . . . . Utility 7 | . . 2 . . 4 1 Device 3 | . . 1 . . 2 . Storage . | . . . . . . . Processor 2 | . . . . . 2 . Hackware . | . . . . . . . Protection 2 | . . 1 . . . 1 Artifact . | . . . . . . . Weapon 16 | 1 . 2 9 . . 4 Energy Gun 1 | 1 . . . . . . Energy Cannon . | . . . . . . . Ballistic Gun 10 | . . . 9 . . 1 Ballistic Cannon 4 | . . 2 . . . 2 Launcher 1 | . . . . . . 1 Special Weapon . | . . . . . . . Impact Weapon . | . . . . . . . Slashing Weapon . | . . . . . . . Piercing Weapon . | . . . . . . . Special Melee Weapon . | . . . . . . . Unidentified Prototypes 6 | . . 1 2 . 2 1 Parts Lost 12 | . 1 . 2 . . 9 Power . | . . . . . . . Propulsion 2 | . . . 2 . . . Utility 2 | . . . . . . 2 Weapon 8 | . 1 . . . . 7 Highest Loss Streak 7 | . 1 . 1 . . 7 To Critical Strikes . | . . . . . . . Average Backups 3 | . . . 3 5 4 3 Power . | . . . . . . . Propulsion . | . . . . . . . Utility . | . . . 1 1 . . Weapon 3 | . . . 2 4 3 3 Tool/Special . | . . . . . . . Unused Backups 2 | . . . . . 1 1 Power . | . . . . . . . Propulsion . | . . . . . . . Utility . | . . . . . . . Weapon 2 | . . . . . 1 1 Tool/Special . | . . . . . . . Average Slot Usage (%) 65 | . 42 45 80 66 65 61 Treads 5 | . 28 28 17 . . . Device 10 | . . 6 11 11 10 9 Processor 3 | . . . . . 3 11 Protection 6 | . . 3 11 11 7 1 Ballistic Gun 37 | . . . 36 44 44 39 Ballistic Cannon 1 | . . 7 4 . . . Peak Build Rating 31 | 3 3 20 29 27 30 31 Average Rating 25 | 2 2 8 24 27 27 28 On Entrance 15 | . 3 2 20 27 27 30 Naked Turns . | . . . . . . . Heaviest Build 17 | 2 2 14 17 15 15 13 Greatest Support 40 | 40 40 40 40 3 3 3 Greatest Overweight (x) 4 | . . . 4 4 4 4 Average Overweight (x) 2 | . . . . 4 3 3 Largest Inventory Capacity 5 | 5 5 5 5 5 5 5 Average Capacity 5 | 5 5 5 5 5 5 5 Most Carried 5 | 2 . 3 5 5 5 4 Average Carried 3 | . . . 3 5 4 3 Final Capacity 5 | 5 5 5 5 5 5 5 Final Carried 5 | . . 2 5 5 4 1 Class Distribution -------------------- 32% | Tank 28% | Gunner 25% | Skirmisher 13% | Mutant Dominant Class ---------------- Mutant | -10/Materials Mutant | -10/Mines Skirmisher | -9/Materials Skirmisher | -9/Mines Tank | -7/Zion Gunner | -7/Deep Caves Resources | -11 -10 -10 -9 -9 -7 -7 ----------- Run | Yrd Mat Min Mat Min Zio Dee Matter Collected 1169 | 106 78 88 591 80 76 150 Remotely . | . . . . . . . Salvage Created 750 | . 108 59 427 97 . 59 Parts 49 | . 6 2 31 7 . 3 Haulers Intercepted 2 | . . . 2 . . . Recyclers Shooed . | . . . . . . . Parts Field Recycled . | . . . . . . . Retrieved Matter . | . . . . . . . Parts Self-Destructed . | . . . . . . . Prevented . | . . . . . . . Kills | -11 -10 -10 -9 -9 -7 -7 ------- Run | Yrd Mat Min Mat Min Zio Dee Combat Hostiles Destroyed 15 | . 1 . 11 2 . 1 Guns 11 | . 1 . 7 2 . 1 Cannons 4 | . . . 4 . . . Classes Destroyed 10 | . 3 1 5 1 . . Worker 1 | . 1 . . . . . Builder 1 | . . . . 1 . . Hauler 2 | . . . 2 . . . Recycler 2 | . . 1 . 1 . . Operator 1 | . . . 1 . . . Watcher 2 | . 1 . 1 . . . Swarmer 6 | . . . 4 2 . . Grunt 4 | . 1 . 3 . . . Duelist 1 | . . . 1 . . . Sentry 3 | . . . 3 . . . Z-Technician 1 | . . . . . . 1 Best Kill Streak 3 | . 2 1 3 2 . 1 Combat Bots Only 3 | . 1 . 3 2 . 1 Max Kills in Single Turn 2 | . 1 1 2 1 . 1 Gunslinging 1 | . . . 1 . . . Exploded . | . . . . . . . Melee . | . . . . . . . Uniques/NPCs Destroyed 1 | . . . . . . 1 Z-Imprinter (-7/Deep Caves) Combat | -11 -10 -10 -9 -9 -7 -7 -------- Run | Yrd Mat Min Mat Min Zio Dee Hostile Shots Fired 180 | . 34 51 36 2 . 57 Missed 61 | . 14 19 14 . . 14 Hits 119 | . 20 32 22 2 . 43 Melee 3 | . . . 3 . . . Projectile 116 | . 20 32 19 2 . 43 Critical Strikes 2 | . 1 . 1 . . . Damage Taken 2703 | . 240 254 336 15 . 1858 Core 681 | . 119 69 81 8 . 404 Absorbed by Shields . | . . . . . . . Redirected to Shielding 39 | . . . 39 . . . Core Remaining (%) 62 | 100 . 24 . . . . Volleys Fired 79 | 2 20 1 36 5 1 14 Largest 4 | 1 1 2 4 4 4 3 Hottest 121 | 40 40 74 99 98 98 121 Shots Fired 200 | 2 20 2 117 20 4 35 Gun 164 | 2 20 . 95 20 4 23 Cannon 36 | . . 2 22 . . 12 Launcher . | . . . . . . . Special . | . . . . . . . Kinetic 178 | . . 2 117 20 4 35 Thermal . | . . . . . . . Explosive . | . . . . . . . Electromagnetic 22 | 2 20 . . . . . Robot Hit Streak 9 | . 6 5 9 3 . 5 Robot Miss Streak 11 | 2 3 1 11 4 . 3 Penetration Max . | . . . . . . . Secondary Targets 2 | . . . 2 . . . Max Gunslinging Chain 1 | . . . 1 . . . Shots Hit Robots 104 | . 13 2 64 9 . 16 Core Hits 47 | . 6 3 27 6 . 5 Critical Kills 1 | . . . 1 . . . Critical Parts Destroyed 3 | . . . 1 . . 2 Critical Strikes 4 | . . . 2 . . 2 Destroy 4 | . . . 2 . . 2 Melee Attacks . | . . . . . . . Impact . | . . . . . . . Slashing . | . . . . . . . Piercing . | . . . . . . . Sneak Attacks . | . . . . . . . Combat Hostiles . | . . . . . . . Follow-up Attacks . | . . . . . . . Damage Inflicted 1874 | . 190 44 1146 161 . 333 Guns 1467 | . 190 . 888 161 . 228 Cannons 404 | . . 41 258 . . 105 Explosions . | . . . . . . . Melee . | . . . . . . . Ramming 3 | . . 3 . . . . Kinetic 1681 | . . 41 1146 161 . 333 Thermal . | . . . . . . . Explosive . | . . . . . . . Electromagnetic 190 | . 190 . . . . . Impact . | . . . . . . . Slashing . | . . . . . . . Piercing . | . . . . . . . Highest Corruption . | . . . . . . . Average Corruption . | . . . . . . . Corruption Purged . | . . . . . . . Corruption Blocked . | . . . . . . . Overload Shots . | . . . . . . . Overflow Damage 2 | . . . . . . 2 Projectiles 2 | . . . . . . 2 Explosions . | . . . . . . . Melee . | . . . . . . . Knockbacks 5 | . . 1 4 . . . Impact . | . . . . . . . Kinetic 5 | . . 1 4 . . . Secondary . | . . . . . . . Self-Inflicted Damage . | . . . . . . . Shots . | . . . . . . . Rammed 2 | . . 2 . . . . Targets Rammed 2 | . . 2 . . . . Kicked . | . . . . . . . Crushed . | . . . . . . . Highest Temperature 333 | . 33 . 140 56 42 333 Average Temperature 69 | . 12 . 33 28 25 170 Received Heat Transfer 615 | . 156 . 72 . . 387 Siege Activations . | . . . . . . . Martial Activations . | . . . . . . . Shielding Activations . | . . . . . . . Robots Disrupted . | . . . . . . . Combat Hostiles . | . . . . . . . Robots Corrupted . | . . . . . . . Combat Hostiles . | . . . . . . . Parts Fried 1 | . 1 . . . . . Impact Corruptions . | . . . . . . . Robots Melted . | . . . . . . . Combat Hostiles . | . . . . . . . Parts Melted 1 | . . . 1 . . . Heat Transferred . | . . . . . . . Parts Sabotaged . | . . . . . . . Parts Stolen . | . . . . . . . Parts Stripped . | . . . . . . . Power Chain Reactions . | . . . . . . . Alert | -11 -10 -10 -9 -9 -7 -7 ------- Run | Yrd Mat Min Mat Min Zio Dee Maximum Alert Level . | . . . . . . . Low Security (%) 100 | 100 100 100 100 100 . . Level 1 . | . . . . . . . Level 2 . | . . . . . . . Level 3 . | . . . . . . . Level 4 . | . . . . . . . Level 5 . | . . . . . . . High Security . | . . . . . . . Max Security . | . . . . . . . Peak Influence 164 | . 30 15 164 89 . . Initial 24 | . . 3 . 24 . . Average 46 | . 6 . 91 26 . . Influence Increases 633 | . 42 20 472 99 . . Destroy 0b10 Robot/C 380 | . 20 . 300 60 . . Destroy 0b10 Robot/NC 50 | . 10 5 25 10 . . Destroy Leader 100 | . 12 . 78 10 . . Allied During Kill 41 | . . . 37 4 . . Disable Machine 30 | . . . 30 . . . Destroy Structure 2 | . . . 2 . . . Lose Combat Pursuer 30 | . . 15 . 15 . . Influence Decreases 633 | . 32 30 410 161 . . Entered New Map 45 | . . 7 . 38 . . Time Decay 518 | . 22 23 350 123 . . Lost Part 30 | . 10 . 20 . . . Lost Ally 40 | . . . 40 . . . Squads Dispatched 2 | . . 1 1 . . . Investigation 1 | . . 1 . . . . Extermination . | . . . . . . . Reinforcement 1 | . . . 1 . . . Assault . | . . . . . . . Garrison . | . . . . . . . Intercept . | . . . . . . . Searches Triggered . | . . . . . . . Construction Impeded . | . . . . . . . Haulers Reinforced . | . . . . . . . Active Scanning Responses . | . . . . . . . Cargo Convoy Interrupts . | . . . . . . . Stealth | -11 -10 -10 -9 -9 -7 -7 --------- Run | Yrd Mat Min Mat Min Zio Dee Distress Signals 1 | . . . 1 . . . Communications Jammed . | . . . . . . . Distress Signals . | . . . . . . . Times Spotted 38 | . 3 3 26 3 . 3 Peak Tracking Total 5 | . 2 3 5 4 . 3 Tactical Retreats 2 | . . 1 . 1 . . Traps | -11 -10 -10 -9 -9 -7 -7 ------- Run | Yrd Mat Min Mat Min Zio Dee Traps Triggered . | . . . . . . . Indirectly . | . . . . . . . Trap Hack Attempts . | . . . . . . . Triggered . | . . . . . . . Disarmed . | . . . . . . . Reprogrammed . | . . . . . . . Reused . | . . . . . . . Traps Extracted . | . . . . . . . Installed . | . . . . . . . Triggered . | . . . . . . . Machines | -11 -10 -10 -9 -9 -7 -7 ---------- Run | Yrd Mat Min Mat Min Zio Dee Machines Disabled 5 | . 1 . 2 . . 2 Max in Single Turn 1 | . 1 . 1 . . . Machines Repaired . | . . . . . . . Machines Dismantled . | . . . . . . . Machines Sabotaged . | . . . . . . . Overloaded Fab Kills . | . . . . . . . Hacking | -11 -10 -10 -9 -9 -7 -7 --------- Run | Yrd Mat Min Mat Min Zio Dee Machines Accessed 1 | . . 1 . . . . Terminals . | . . . . . . . Fabricators . | . . . . . . . Repair Stations . | . . . . . . . Recycling Units . | . . . . . . . Scanalyzers . | . . . . . . . Garrison Access . | . . . . . . . Total Hacks 1 | . . 1 . . . . Successful 1 | . . 1 . . . . Failed . | . . . . . . . Catastrophic . | . . . . . . . Database Lockouts . | . . . . . . . Manual 5 | . . . . . 5 . Terminals . | . . . . . . . Fabricators . | . . . . . . . Repair Stations . | . . . . . . . Recycling Units . | . . . . . . . Scanalyzers . | . . . . . . . Garrison Access . | . . . . . . . Terminal Hacks 1 | . . 1 . . . . Open Door 1 | . . 1 . . . . Fabricator Hacks . | . . . . . . . Repair Station Hacks . | . . . . . . . Recycling Unit Hacks . | . . . . . . . Scanalyzer . | . . . . . . . Garrison Access Hacks . | . . . . . . . Unauthorized Hacks . | . . . . . . . Terminals . | . . . . . . . Fabricators . | . . . . . . . Repair Stations . | . . . . . . . Recycling Units . | . . . . . . . Scanalyzers . | . . . . . . . Garrison Access . | . . . . . . . Data Cores Recovered . | . . . . . . . Used . | . . . . . . . Hacking Detections . | . . . . . . . Full Trace Events . | . . . . . . . Feedback Events . | . . . . . . . Feedback Blocked . | . . . . . . . Robot Schematics Acquired 3 | . . . . . 3 . Robots Built . | . . . . . . . Authchips . | . . . . . . . Time . | . . . . . . . Total Robot Build Rating . | . . . . . . . Part Schematics Acquired 16 | . . . . . 16 . Parts Built . | . . . . . . . Authchips . | . . . . . . . Time . | . . . . . . . Total Part Build Rating . | . . . . . . . Parts Repaired . | . . . . . . . Time . | . . . . . . . Parts Recycled . | . . . . . . . Recycled Matter . | . . . . . . . Retrieved Matter . | . . . . . . . Retrieved Components . | . . . . . . . Parts Scanalyzed . | . . . . . . . Part Schematics Acquired . | . . . . . . . Parts Damaged . | . . . . . . . Bothacking | -11 -10 -10 -9 -9 -7 -7 ------------ Run | Yrd Mat Min Mat Min Zio Dee Used RIF Installer . | . . . . . . . Robots Hacked . | . . . . . . . Non-combat . | . . . . . . . Combat . | . . . . . . . Robot Hacks Applied . | . . . . . . . Relay Couplers Released . | . . . . . . . Fabnet Peak Effective % . | . . . . . . . Robots Rewired . | . . . . . . . Allies Hacked . | . . . . . . . Hacks Repelled . | . . . . . . . Allies | -11 -10 -10 -9 -9 -7 -7 -------- Run | Yrd Mat Min Mat Min Zio Dee Total Allies 10 | . . 3 . . 7 . Largest Group 8 | . . 3 3 1 8 8 Highest-Rated Group 266 | . . 40 40 16 266 266 Highest-Rated Ally 40 | . . 16 16 16 40 40 Total Orders 1 | . . . . . 1 . RETURN 1 | . . . . . 1 . Ally Attacks 80 | . . . 29 3 . 48 Total Damage 1784 | . . . 287 13 . 1484 Kills 12 | . . . 5 1 . 6 Allies Corrupted . | . . . . . . . Allies Melted . | . . . . . . . Intel | -11 -10 -10 -9 -9 -7 -7 ------- Run | Yrd Mat Min Mat Min Zio Dee Active Infowar (turns) 2601 | . . 209 782 366 544 700 Sensors 1762 | . . 209 782 366 405 . Decoding 839 | . . . . . 139 700 Robot Analysis Total . | . . . . . . . Derelict Logs Recovered 3 | . . . . 1 2 . Drone Launches 1 | . . . . . 1 . Drone Recoveries 1 | . . . . . 1 . Exploration | -11 -10 -10 -9 -9 -7 -7 ------------- Run | Yrd Mat Min Mat Min Zio Dee Turns Passed 5893 | 37 111 478 782 366 3419 700 Spaces Moved 2279 | 28 45 177 369 136 1319 205 Core 1734 | 15 . . 59 136 1319 205 Treads 545 | 13 45 177 310 . . . Legs . | . . . . . . . Wheels . | . . . . . . . Hover . | . . . . . . . Flight . | . . . . . . . Fastest Speed 50 | 50 160 160 160 250 200 100 Average Speed 223 | 101 160 160 174 250 248 215 Slowest Speed 250 | 160 160 160 250 250 250 250 Overloaded Moves . | . . . . . . . Propulsion Burnouts . | . . . . . . . Robots Hopped . | . . . . . . . Potential Cave-ins . | . . . . . . . Cave-ins Triggered . | . . . . . . . Exploration Rate (%) 36 | 3 16 37 43 38 90 28 Regions Visited 6 Branch Regions 4 Pre-discovered Areas 2 | . . . . 1 1 . Known Exits Taken . | . . . . . . . Unknown Exits Taken 6 | 1 1 1 1 1 1 . Scrap Searched 3 | . . . . . 3 . Spaces Dug . | . . . . . . . Terrain Destroyed 6 | . . . 1 . . 5 Melee . | . . . . . . . Projectile 6 | . . . 1 . . 5 AOE . | . . . . . . . Terrain Rammed . | . . . . . . . Walls Destroyed . | . . . . . . . Machines Disabled . | . . . . . . . Actions | -11 -10 -10 -9 -9 -7 -7 --------- Run | Yrd Mat Min Mat Min Zio Dee Total 2975 | 35 64 369 445 157 1464 441 Wait 549 | . . 180 21 17 118 213 Move 2273 | 27 44 176 368 135 1318 205 Hop . | . . . . . . . Pick Up 24 | 3 . 6 5 . 8 2 Fast Attach 3 | . . . 2 . 1 . Attach 19 | 3 . 4 4 . 3 5 Detach 2 | . . . 2 . . . Swap 10 | . . . 4 . 4 2 Drop 14 | . . . 3 . 11 . Fire 79 | 2 20 1 36 5 1 14 Melee . | . . . . . . . Ram . | . . . . . . . Kick . | . . . . . . . Crush 2 | . . 2 . . . . Escape Stasis . | . . . . . . . Rewire . | . . . . . . . Trap . | . . . . . . . Miscellaneous . | . . . . . . . Route ------- -11/Scrapyard -10/Materials -10/Mines -9/Materials (discovered 2 exits: [*Mat] / [*Min]) -9/Mines -7/Zion (discovered 2 exits: [*Dee] / [*Pro]) -7/Deep Caves History --------- Turn | Location | Event 11 | -11/Scrapyard | Discovered new exit (range 13) 38 | -11/Scrapyard | Entered Materials 92 | -10/Materials | Discovered new exit (range 14) 149 | -10/Materials | Entered Mines 305 | -10/Mines | Build established: Mutant 382 | -10/Mines | Core integrity fell below 50% 414 | -10/Mines | Found a damaged Exp. Sensor Array with a note attached 417 | -10/Mines | Found Prototype Device 418 | -10/Mines | Identified Exp. Sensor Array 446 | -10/Mines | Discovered new exit (range 5) 476 | -10/Mines | Met a Derelict shopkeep closing up shop 569 | -10/Mines | Assisted by bots powering up and referring to "LRC-V3" 627 | -10/Mines | Entered Materials 627 | -9/Materials | Accompanied by 3 allies 627 | -9/Materials | Evolved 2 slots: Weapon x2 934 | -9/Materials | Discovered new exit (range 10) 976 | -9/Materials | Build established: Skirmisher 1383 | -9/Materials | Discovered new exit (range 9) 1409 | -9/Materials | Entered Mines 1409 | -9/Mines | Accompanied by 1 ally 1661 | -9/Mines | Learned location of Zion (-7) 1755 | -9/Mines | A Derelict revealed a hidden shortcut to a safe place 1775 | -9/Mines | Entered Zion 1775 | -7/Zion | Accompanied by 1 ally 1848 | -7/Zion | Given the Hacking Drone Bay 2020 | -7/Zion | Discovered new exit (range 16) 2181 | -7/Zion | Found Prototype Device 2181 | -7/Zion | Identified Hacking Drone Bay 2447 | -7/Zion | Learned Factory emergency access door positions 2455 | -7/Zion | Found Prototype Device 2456 | -7/Zion | Identified Mobile Refinery Mk. CCLXVII 2492 | -7/Zion | Build established: Tank 2743 | -7/Zion | Given A8's code to call for help 2853 | -7/Zion | Met Imprinter 2898 | -7/Zion | Imprinted 2901 | -7/Zion | Declared Zion's savior 3166 | -7/Zion | Gained Derelict followers 3757 | -7/Zion | Learned location of 1 exit from Factory 3847 | -7/Zion | Learned Factory emergency access door positions 4374 | -7/Zion | Build established: Gunner 4822 | -7/Zion | Acquired unknown access codes intercepted by a Zionite 5079 | -7/Zion | Opened final containment barrier to the Deep Caves 5172 | -7/Zion | Discovered new exit (range 5) 5177 | -7/Zion | Saw the warning signs outside the Deep Caves entrance 5194 | -7/Zion | Entered Deep Caves 5194 | -7/Deep Caves | Accompanied by 8 allies 5759 | -7/Deep Caves | Attacked by Z-Imprinter 5765 | -7/Deep Caves | Z-Facility disabled 5784 | -7/Deep Caves | Core integrity fell below 50% 5796 | -7/Deep Caves | Destroyed Z-Imprinter 5824 | -7/Deep Caves | Lost 7 parts (1u6w) 5894 | -7/Deep Caves | Destroyed by QH-AVI(h) via exploding Z-Power Last Messages --------------- A4-D8J(z) destroyed. Y5-YVW(z) critical meltdown. Acquired Prototype Protection. Identified Zio. Light Carapace. Acquired 37 matter. Acquired 47 matter. Acquired 4 matter. Acquired 3 matter. Acquired 4 matter. Acquired 2 matter. Acquired 25 matter. Acquired Particle Gun. Acquired 16 matter. Acquired 12 matter. HV Slug penetrates ND-SI7(g). ND-SI7(g) suffers critical hit (Destroy). Z-Power explodes. ND-SI7(g) destroyed. Zio. Light Carapace destroyed. Enh. Autogun destroyed. Map ----- +----------------------------------------------------+ | ?????????????????????? ## # #???### ##?? | | ???????????????????? ##### #?? | | ??????????????????? #?? | | ??????????????????? #?? | | ???????????????????? ###? | | ???????????????????? # #? | | ????????????????????""" "### | | ??????????????????""""" """ | | ??????????????????""""" | | ??????????????????""""" | | ?????????????????""" | | ????????????????""""""" % # | | ??????????????""""""""" ### | | ??????????????""""""""" ##?? | | ?????????????"""""""""" #??? | | ?????????????""""" "=" #??? | | ?????????????""""""%! / % #?? | | ?????????????""""" */=* #?? | | ?????????????"""""" #?? | | ?????????????""""" ##?? | | ?????????????""" " "" ! #??? | | ?????????????"""""""""" / #?? | | ?????????????""" *h #?? | | ?????????????""" i ##?? | | ?????????????""" ##??? | | ?????????????""" @ #???? | | ?????????????""" ?????? | | ?????????????""" ????????? | | ??????????????"" ?????????? | | ??????????????"" ?????????? | | ??????????????"" ??????????? | | ??????????????"""""""""o ??????????? | | ??????????????""""""" ??????????? | | ????????????????? ???????????? | | ??????????????????? ???????????? | | ??????????????????? ????????????? | | ??????????????????? ????????????? | | ???????????????????? ??????????????? | | ???????????????????? ????????????????? | | ????????????????????? ###???????????????????? | | ??????????????????????? ###??????????????????????? | | ?????????????????????????????????????????????????? | | ?????????????????????????????????????????????????? | | ?????????????????????????????????????????????????? | | ?????????????????????????????????????????????????? | | | | | | | | | | | +----------------------------------------------------+ Best States ------------- Heat Dissipation 28 Energy Generation 5 Energy Capacity 100 Matter Stores 300 Matter Capacity 300 Sight Range 16 Robot Scan Range 20 Terrain Scan Density 10 Armor Coverage 400 Propulsion Shielding 66 Evasion (%) 50 Targeting Accuracy 8 Recoil Reduction 2 Item Schematics ----------------- Imp. System Shield | -7/Zion | Archive Gatling Laser | -7/Zion | Archive Imp. Titanium Leg | -7/Zion | Archive Jamming Amplifier | -7/Zion | Archive Lyr. Heavy Armor Plating | -7/Zion | Archive Coil Gun | -7/Zion | Archive Recalibrator | -7/Zion | Archive Hvy. Pick | -7/Zion | Archive Kinecellerator | -7/Zion | Archive Xenon Bombardment Thruster | -7/Zion | Archive Thermal Shield | -7/Zion | Archive Spear | -7/Zion | Archive Adv. Sensor Array | -7/Zion | Archive Imp. Cooling System | -7/Zion | Archive Imp. Remote Datajack | -7/Zion | Archive Tiamat Missile Launcher | -7/Zion | Archive Robot Schematics ------------------ O-24 Administrator | -7/Zion | Archive Y-54 Guardian | -7/Zion | Archive G-47 Trooper | -7/Zion | Archive Fabricated ------------ Nothing Repaired ---------- Nothing Alien Tech Used ----------------- None Achievements -------------- None Challenges ------------ None Game ------ Seed CatalystDirtyParser Manual? 0 Play Time 00:24:51 Cumulative 80.5 hours Start 2025.08.04 @ 23:33:28 End 2025.08.05 @ 08:42:12 Sessions 3 Manual Loads 0 Difficulty Rogue Special Mode None Game No. 322 Rogue 322 Adventurer 0 Explorer 0 Win Type - Total 0 Types 0/0/0/0/0/0/0/0/0/0 Lore% 32 Gallery% 35 Achievement% 30 Wizard Run 0 Options --------- Layout 2 ASCII 0 Keyboard 0 Movement Mouse Keybinds 0 Fullscreen 2 Font 24/Smallcaps Map View 50x44 Zoom Use 0% Tactical HUD 0 Map Filters NONE Filters NONE Steam 1 RUN: 7fe12f39-1a82-4302-b1f1-e196aa602593